bitfinex/quotes_BTCUSD_20250910
["timestamp","ask_amount","ask_price","bid_price","bid_amount"]
[1757496206605,0.18372431,112510.0,112500.0,1.14929275]
[1757496208376,0.18372431,112510.0,112500.0,1.21287875]
[1757496208797,0.18372431,112510.0,112500.0,0.87103147]
[1757496209002,0.18372431,112510.0,112500.0,1.21287875]
[1757496209824,0.18372431,112510.0,112500.0,1.03510098]
[1757496211316,0.18372431,112510.0,112500.0,0.62728671]
[1757496211317,0.20822431,112510.0,112500.0,0.62728671]
[1757496211524,0.37914795,112510.0,112500.0,0.62728671]
[1757496211734,0.37914795,112510.0,112500.0,0.56370071]
[1757496211937,0.37914795,112510.0,112500.0,0.78258884]
[1757496212145,0.40585261,112510.0,112500.0,0.78258884]
[1757496212352,0.23492897,112510.0,112500.0,0.78258884]
[1757496213517,0.23492897,112510.0,112500.0,0.63410884]
[1757496213739,0.23492897,112510.0,112500.0,0.78258884]
[1757496214673,0.23492897,112510.0,112500.0,0.6116652]
[1757496214886,0.40585261,112510.0,112500.0,0.6116652]
[1757496215090,0.40585261,112510.0,112500.0,0.12828449]
[1757496215289,0.40585261,112510.0,112500.0,0.27676449]
[1757496215742,0.40585261,112510.0,112500.0,0.12828449]
[1757496215958,0.40585261,112510.0,112500.0,0.2288]
[1757496218673,0.74585261,112510.0,112500.0,0.08032]
[1757496218810,0.94991809,112510.0,112500.0,0.2288]
[1757496219020,1.00869224,112510.0,112500.0,1e-08]
[1757496219261,1.00869224,112510.0,112500.0,0.14848001]
[1757496219659,1.00869224,112510.0,112500.0,1e-08]
[1757496219910,0.17779358,112490.0,112480.0,0.06832]
[1757496220135,0.3842757,112490.0,112480.0,0.06832]
[1757496220297,0.3863357,112490.0,112480.0,0.2168]
[1757496220504,0.4138757,112490.0,112480.0,0.2168]
[1757496220703,0.44940409,112490.0,112480.0,0.2168]
[1757496221347,0.44940409,112490.0,112480.0,0.2198]
[1757496222744,0.45040409,112490.0,112480.0,0.07132]
[1757496222914,0.45040409,112490.0,112480.0,0.2198]
[1757496230625,0.45040409,112490.0,112480.0,0.07132]
[1757496230827,0.45040409,112490.0,112480.0,0.2198]
[1757496231030,0.45040409,112490.0,112480.0,0.07132]
[1757496231238,0.45040409,112490.0,112480.0,0.2198]
[1757496231781,0.45040409,112490.0,112480.0,0.15148]
[1757496232873,0.79040409,112490.0,112480.0,0.15148]
[1757496235882,0.79040409,112490.0,112480.0,0.003]
[1757496236086,0.79040409,112490.0,112480.0,0.15148]
[1757496236499,0.73347364,112490.0,112480.0,0.15148]
[1757496236938,0.73347364,112490.0,112480.0,0.003]
[1757496237133,0.73347364,112490.0,112480.0,0.15148]
[1757496240370,0.69791516,112490.0,112480.0,0.15148]
[1757496243781,0.69791516,112490.0,112480.0,0.003]
[1757496248534,0.58392197,112490.0,112480.0,0.003]
[1757496248745,0.84639516,112490.0,112480.0,0.003]
[1757496250968,0.17782519,112470.0,112460.0,0.29094921]
[1757496251182,0.20267519,112470.0,112460.0,0.04796449]
[1757496251399,0.38389416,112470.0,112460.0,0.04796449]
[1757496251578,0.41061111,112470.0,112460.0,0.04796449]
[1757496251726,0.23232214,112470.0,112460.0,0.04796449]
[1757496251921,0.34631533,112470.0,112460.0,0.04796449]
[1757496252456,0.34631533,112470.0,112460.0,0.04810322]
[1757496252628,0.49479533,112470.0,112460.0,0.04810322]
[1757496253217,0.34631533,112470.0,112460.0,0.04810322]
[1757496253421,0.49479533,112470.0,112460.0,0.00013873]
[1757496253868,0.49479533,112470.0,112460.0,0.00113873]
[1757496253869,0.57445512,112470.0,112460.0,0.00113873]
[1757496254783,0.34731533,112470.0,112460.0,0.00113873]
[1757496255004,0.49579533,112470.0,112460.0,0.00113873]
[1757496257697,0.34731533,112470.0,112460.0,0.00113873]
[1757496257916,0.49579533,112470.0,112460.0,0.00113873]
[1757496258299,0.49579533,112470.0,112460.0,0.00013873]
[1757496259192,0.91455512,112470.0,112460.0,0.00013873]
[1757496259417,0.76607512,112470.0,112460.0,0.00013873]
[1757496259618,0.91455512,112470.0,112460.0,0.00013873]
[1757496260294,0.76507512,112470.0,112460.0,0.00013873]
[1757496260446,0.91555512,112470.0,112460.0,0.00013873]
[1757496263491,0.65308193,112470.0,112460.0,0.00013873]
[1757496263736,0.91555512,112470.0,112460.0,0.00013873]
[1757496265596,0.76707512,112470.0,112460.0,0.00013873]
[1757496265813,0.57432214,112470.0,112460.0,0.00013873]
[1757496266039,0.68831533,112470.0,112460.0,0.00013873]
[1757496266244,0.83679533,112470.0,112460.0,0.00013873]
[1757496266465,0.72280214,112470.0,112460.0,0.00013873]
[1757496269501,0.57432214,112470.0,112460.0,0.00013873]
[1757496269681,0.72280214,112470.0,112460.0,0.00013873]
[1757496270460,0.57432214,112470.0,112460.0,0.22812511]
[1757496270663,0.20654214,112470.0,112460.0,0.23022511]
[1757496270870,0.69994214,112470.0,112460.0,0.11413192]
[1757496271681,0.55146214,112470.0,112460.0,0.11413192]
[1757496271900,0.69994214,112470.0,112460.0,0.11413192]
[1757496272122,0.69994214,112470.0,112460.0,0.11623192]
[1757496272341,0.55146214,112470.0,112460.0,0.11623192]
[1757496272566,0.69502214,112470.0,112460.0,0.11623192]
[1757496273662,0.69994214,112470.0,112460.0,0.11623192]
[1757496273874,0.69994214,112470.0,112460.0,0.11413192]
[1757496274980,0.55146214,112470.0,112460.0,0.11413192]
[1757496275234,0.69994214,112470.0,112460.0,0.11413192]
[1757496276081,0.55146214,112470.0,112460.0,0.11413192]
[1757496276296,0.69994214,112470.0,112460.0,0.11623192]
[1757496277001,0.55146214,112470.0,112460.0,0.11623192]
[1757496277204,0.69994214,112470.0,112460.0,0.11623192]
[1757496278054,0.55146214,112470.0,112460.0,0.11623192]
[1757496278266,0.69994214,112470.0,112460.0,0.11623192]
[1757496278477,0.69994214,112470.0,112460.0,0.16419641]
[1757496280527,0.69994214,112470.0,112460.0,0.16209641]
[1757496282112,0.69994214,112470.0,112460.0,0.16423641]
[1757496282663,0.69994214,112470.0,112460.0,0.16209641]
[1757496283761,0.69994214,112470.0,112460.0,0.04810322]
[1757496284047,0.69994214,112470.0,112460.0,0.16209641]
[1757496285337,0.69994214,112470.0,112460.0,0.04810322]
[1757496286083,0.72449214,112470.0,112460.0,0.04810322]
[1757496287240,0.92671955,112470.0,112460.0,0.04810322]
[1757496287448,0.81272636,112470.0,112460.0,0.04810322]
[1757496287876,0.72449214,112470.0,112460.0,0.04810322]
[1757496292423,0.69994214,112470.0,112460.0,0.04810322]
[1757496295201,0.20654214,112470.0,112460.0,0.2782296]
[1757496295789,0.20654214,112470.0,112460.0,0.4294596]
[1757496296014,0.20654214,112470.0,112460.0,0.4266696]
[1757496296411,0.20654214,112470.0,112460.0,0.54058496]
[1757496296617,0.20654214,112470.0,112460.0,0.20147322]
[1757496296793,0.20654214,112470.0,112460.0,0.54337496]
[1757496297319,0.20654214,112470.0,112460.0,0.49541047]
[1757496297632,0.20654214,112470.0,112460.0,0.51915047]
[1757496300317,0.20654214,112470.0,112460.0,0.46262646]
[1757496300535,0.20654214,112470.0,112460.0,1.03185219]
[1757496300737,0.20654214,112470.0,112460.0,1.26638906]
[1757496300948,0.02871695,112470.0,112460.0,1.26638906]
[1757496301163,0.02871695,112470.0,112460.0,1.14311564]
[1757496301389,0.002,112470.0,112460.0,1.22792964]
[1757496301592,0.002,112470.0,112460.0,1.07952964]
[1757496301780,0.002,112470.0,112460.0,1.30753703]
[1757496302016,0.00020578,112470.0,112460.0,1.22792964]
[1757496302221,0.00020578,112470.0,112460.0,1.3078674]
[1757496302938,0.00020578,112470.0,112460.0,1.37427779]
[1757496303352,0.00020578,112470.0,112460.0,1.37627779]
[1757496303560,0.21339221,112490.0,112470.0,0.17781568]
[1757496303799,0.21339221,112490.0,112480.0,0.68147034]
[1757496304009,0.21339221,112490.0,112480.0,0.67924773]
[1757496305255,0.21539221,112490.0,112480.0,0.7271474]
[1757496305492,0.21539221,112490.0,112480.0,0.5787474]
[1757496305879,0.21539221,112490.0,112480.0,0.7271474]
[1757496306295,0.21539221,112490.0,112480.0,0.5787474]
[1757496306501,0.21539221,112490.0,112480.0,0.7271474]
[1757496306734,0.21539221,112490.0,112480.0,0.97013212]
[1757496308205,0.21539221,112490.0,112480.0,0.82173212]
[1757496308414,0.21539221,112490.0,112480.0,0.97013212]
[1757496310173,0.21539221,112490.0,112480.0,0.82173212]
[1757496310381,0.21539221,112490.0,112480.0,0.97009212]
[1757496310722,0.21539221,112490.0,112480.0,0.47983038]
[1757496310930,0.21539221,112490.0,112480.0,0.97009212]
[1757496311813,0.21539221,112490.0,112480.0,1.1479015]
[1757496312034,0.20650254,112490.0,112480.0,1.1479015]
[1757496313181,0.20650254,112490.0,112480.0,0.9995415]
[1757496313384,0.20650254,112490.0,112480.0,0.97009212]
[1757496313799,0.20650254,112490.0,112480.0,1.1479015]
[1757496317419,0.20650254,112490.0,112480.0,0.9995415]
[1757496317615,0.20650254,112490.0,112480.0,0.97009212]
[1757496317870,0.20650254,112490.0,112480.0,0.79520212]
[1757496318089,0.20650254,112490.0,112480.0,0.94356212]
[1757496318456,0.20860254,112490.0,112480.0,0.79520212]
[1757496318691,0.21155254,112490.0,112480.0,0.94356212]
[1757496318843,0.20650254,112490.0,112480.0,0.79520212]
[1757496319023,0.20650254,112490.0,112480.0,0.94356212]
[1757496319523,0.20650254,112490.0,112480.0,0.79520212]
[1757496319725,0.20650254,112490.0,112480.0,0.94356212]
[1757496320611,0.20650254,112490.0,112480.0,0.94352212]
[1757496322086,0.20650254,112490.0,112480.0,1.1472415]
[1757496323325,0.02870896,112490.0,112480.0,1.29541928]
[1757496323543,0.002,112490.0,112480.0,1.35933196]
[1757496327376,0.002,112490.0,112480.0,1.29541928]
[1757496327784,0.502,112490.0,112480.0,1.29541928]
[1757496329431,0.502,112490.0,112480.0,1.37535704]
[1757496335452,0.502,112490.0,112480.0,1.37531704]
[1757496338113,0.502,112490.0,112480.0,1.88816965]
[1757496338786,0.502,112490.0,112480.0,1.37531704]
[1757496339039,0.502,112490.0,112480.0,1.77531704]
[1757496340025,0.502,112490.0,112480.0,1.62703704]
[1757496340434,0.502,112490.0,112480.0,1.77531704]
[1757496340810,0.502,112490.0,112480.0,1.62703704]
[1757496341012,0.502,112490.0,112480.0,1.77531704]
[1757496341604,0.502,112490.0,112480.0,1.77631704]
[1757496342043,0.502,112490.0,112480.0,1.77531704]
[1757496342353,0.502,112490.0,112480.0,1.77731704]
[1757496342785,0.5,112490.0,112480.0,1.77731704]
[1757496343639,0.5,112490.0,112480.0,2.63116965]
[1757496343854,0.25701528,112490.0,112480.0,2.38818493]
[1757496348197,0.25701528,112490.0,112480.0,2.65688493]
[1757496350097,0.25701528,112490.0,112480.0,2.67469493]
[1757496350817,0.25701528,112490.0,112480.0,2.59175717]
[1757496350991,0.25801528,112490.0,112480.0,2.59175717]
[1757496351231,0.27001528,112490.0,112480.0,2.59275717]
[1757496353766,0.13947933,112490.0,112480.0,2.59271717]
[1757496354210,0.0004,112510.0,112500.0,1.05575696]
[1757496354428,0.0004,112510.0,112500.0,1.48900842]
[1757496354664,0.0004,112510.0,112500.0,1.49100842]
[1757496354877,0.0004,112510.0,112500.0,1.91672842]
[1757496355515,0.00044623,112510.0,112500.0,1.91872842]
[1757496356157,0.00044623,112510.0,112500.0,1.92672842]
[1757496357005,0.00044623,112510.0,112500.0,1.99365493]
[1757496358627,0.00044623,112510.0,112500.0,1.7084783]
[1757496363373,0.00044623,112510.0,112500.0,1.82231629]
[1757496363578,0.00044623,112510.0,112500.0,1.7084783]
[1757496363993,0.00044623,112510.0,112500.0,1.82231629]
[1757496364206,0.00044623,112510.0,112500.0,1.83829056]
[1757496364652,0.00044623,112510.0,112500.0,1.75844149]
[1757496364872,5.819e-05,112510.0,112500.0,1.87041989]
[1757496366033,1.819e-05,112510.0,112500.0,1.87397924]
[1757496366254,1.819e-05,112510.0,112500.0,1.72573924]
[1757496366463,1.819e-05,112510.0,112500.0,1.87393924]
[1757496368157,1.819e-05,112510.0,112500.0,1.87389924]
[1757496368584,0.0004,112520.0,112510.0,0.20288855]
[1757496368805,0.00046231,112520.0,112510.0,0.94177698]
[1757496369018,0.00046231,112520.0,112510.0,0.94377698]
[1757496369231,0.0004,112530.0,112520.0,0.65671074]
[1757496369399,0.0004,112530.0,112520.0,1.20424455]
[1757496369635,0.0004,112530.0,112520.0,1.08380455]
[1757496369858,0.0004,112530.0,112520.0,1.23196455]
[1757496370045,0.0004,112530.0,112520.0,1.63196455]
[1757496370963,0.0004,112530.0,112520.0,1.63596455]
[1757496371621,0.0004,112530.0,112520.0,1.49080455]
[1757496371802,0.0004,112530.0,112520.0,1.76818522]
[1757496372754,0.0004,112530.0,112520.0,1.62002522]
[1757496372962,0.17813038,112530.0,112520.0,1.62862723]
[1757496373172,0.18320038,112530.0,112520.0,0.77629666]
[1757496373375,0.18320038,112530.0,112520.0,0.74197465]
[1757496373582,0.18320038,112530.0,112520.0,0.95602534]
[1757496373966,0.18320038,112530.0,112520.0,0.95302534]
[1757496374401,0.18320038,112530.0,112520.0,0.95102534]
[1757496374536,0.18320038,112530.0,112520.0,1.06786333]
[1757496376587,0.18320038,112530.0,112520.0,1.2456095]
[1757496376588,0.18009038,112530.0,112520.0,1.2456095]
[1757496376788,0.17813038,112530.0,112520.0,1.2456095]
[1757496376996,0.0004,112530.0,112520.0,1.2456095]
[1757496377152,0.17813038,112530.0,112520.0,1.2456095]
[1757496377354,0.17813038,112530.0,112520.0,1.0974495]
[1757496377558,0.18320038,112530.0,112520.0,1.06786333]
[1757496377936,0.18320038,112530.0,112520.0,0.91970333]
[1757496378141,0.18320038,112530.0,112520.0,1.06782333]
[1757496378352,0.18320038,112530.0,112520.0,0.84014735]
[1757496378560,0.18320038,112530.0,112520.0,1.06782333]
[1757496379147,0.17813038,112530.0,112520.0,1.06782333]
[1757496379346,0.17813038,112530.0,112520.0,1.2455695]
[1757496380737,0.2048271,112530.0,112520.0,1.2455695]
[1757496381056,0.2048271,112530.0,112520.0,1.01789352]
[1757496381261,0.2048271,112530.0,112520.0,1.2455695]
[1757496383331,0.2048271,112530.0,112520.0,1.18172881]
[1757496389202,0.2048271,112530.0,112520.0,1.26151065]
[1757496389615,0.2048271,112530.0,112520.0,1.08376448]
[1757496389823,0.2079371,112530.0,112520.0,1.08376448]
[1757496390250,0.2079371,112530.0,112520.0,0.93564448]
[1757496390498,0.2079371,112530.0,112520.0,1.08376448]
[1757496390710,0.2079371,112530.0,112520.0,1.26151065]
[1757496391345,0.2079371,112530.0,112520.0,1.11339065]
[1757496391527,0.2079371,112530.0,112520.0,1.26151065]
[1757496393612,0.2048271,112530.0,112520.0,1.26151065]
[1757496393850,0.2048271,112530.0,112520.0,1.03383467]
[1757496394054,0.2098971,112530.0,112520.0,1.08376448]
[1757496394582,0.2048271,112530.0,112520.0,1.26151065]
[1757496402413,0.2048271,112530.0,112520.0,0.86151065]
[1757496406893,0.2048271,112530.0,112520.0,0.75204448]
[1757496407106,0.2079971,112530.0,112520.0,0.75204448]
[1757496407653,0.2048271,112530.0,112520.0,0.75204448]
[1757496408066,0.2099671,112530.0,112520.0,0.75204448]
[1757496408682,0.2048271,112530.0,112520.0,0.75204448]
[1757496410278,0.2048271,112530.0,112520.0,0.5243685]
[1757496410411,0.2099671,112530.0,112520.0,0.3741985]
[1757496410616,0.2343871,112530.0,112520.0,0.39305783]
[1757496410973,0.2343871,112530.0,112520.0,0.42711398]
[1757496411407,0.2343871,112530.0,112520.0,0.49113515]
[1757496411853,0.2343871,112530.0,112520.0,0.22921716]
[1757496412058,0.34822509,112530.0,112520.0,0.28538117]
[1757496412899,0.2343871,112530.0,112520.0,0.21836]
[1757496413103,0.34822509,112530.0,112520.0,0.11628089]
[1757496413312,0.34822509,112530.0,112520.0,0.26536089]
[1757496413516,0.34822509,112530.0,112520.0,0.21836]
[1757496413745,0.34822509,112530.0,112520.0,0.21636]
[1757496415133,0.34822509,112530.0,112520.0,0.06828]
[1757496415299,0.34822509,112530.0,112520.0,0.2164]
[1757496416115,0.34922509,112530.0,112520.0,0.2164]
[1757496418404,0.40622494,112530.0,112520.0,0.2164]
[1757496421429,0.2353871,112530.0,112520.0,0.2164]
[1757496421649,0.40622494,112530.0,112520.0,0.2164]
[1757496422373,0.2353871,112530.0,112520.0,0.2164]
[1757496422823,0.40622494,112530.0,112520.0,0.2164]
[1757496423840,0.2353871,112530.0,112520.0,0.2164]
[1757496427611,0.40622494,112530.0,112520.0,0.2164]
[1757496429415,0.40622494,112530.0,112520.0,0.21656]
[1757496429747,0.40622494,112530.0,112520.0,0.06828]
[1757496429904,0.40622494,112530.0,112520.0,0.21656]
[1757496432751,0.74622494,112530.0,112520.0,0.21656]
[1757496433837,0.74622494,112530.0,112520.0,0.06828]
[1757496434040,0.74622494,112530.0,112520.0,0.21656]
[1757496434942,0.74622494,112530.0,112520.0,0.21652]
[1757496435334,0.5753871,112530.0,112520.0,0.21652]
[1757496435538,0.74622494,112530.0,112520.0,0.21652]
[1757496437581,0.74622494,112530.0,112520.0,0.06828]
[1757496437794,0.74622494,112530.0,112520.0,0.21648]
[1757496439283,0.5753871,112530.0,112520.0,0.21648]
[1757496439485,0.74622494,112530.0,112520.0,0.21648]
[1757496439702,0.74622494,112530.0,112520.0,0.1482]
[1757496440868,0.17774617,112520.0,112510.0,0.04800089]
[1757496441106,0.17777777,112500.0,112490.0,0.13893212]
[1757496441329,0.37783561,112500.0,112490.0,0.28755443]
[1757496441584,0.20699777,112500.0,112490.0,0.28755443]
[1757496441989,0.23370668,112500.0,112490.0,0.21694231]
[1757496442187,0.40454452,112500.0,112490.0,0.21694231]
[1757496442430,0.40454452,112500.0,112490.0,0.38778015]
[1757496442431,0.23370668,112500.0,112490.0,0.38778015]
[1757496443088,0.23370668,112500.0,112490.0,0.38978015]
[1757496443427,0.23370668,112500.0,112490.0,0.39078015]
[1757496443678,0.23370668,112500.0,112490.0,0.38778015]
[1757496443815,0.23370668,112500.0,112490.0,0.38878015]
[1757496444020,0.23370668,112500.0,112490.0,0.38978015]
[1757496445226,0.24258054,112500.0,112490.0,0.38878015]
[1757496445427,0.24258054,112500.0,112490.0,0.38978015]
[1757496446803,0.24258054,112500.0,112490.0,0.21894231]
[1757496446990,0.24258054,112500.0,112490.0,0.38978015]
[1757496449425,0.24258054,112500.0,112490.0,0.40759015]
[1757496449634,0.24258054,112500.0,112490.0,0.38978015]
[1757496451083,0.24258054,112500.0,112490.0,0.21894231]
[1757496451294,0.24258054,112500.0,112490.0,0.38978015]
[1757496452070,0.24258054,112500.0,112490.0,0.21794231]
[1757496452279,0.24258054,112500.0,112490.0,0.38878015]
[1757496452897,0.24258054,112500.0,112490.0,0.38778015]
[1757496457260,0.41341838,112500.0,112490.0,0.21694231]
[1757496457458,0.41341838,112500.0,112490.0,0.14862231]
[1757496458102,0.41341838,112500.0,112490.0,0.00046231]
[1757496458329,0.41341838,112500.0,112490.0,0.14862231]
[1757496458540,0.92425622,112500.0,112490.0,0.00046231]
[1757496458749,1.07241622,112500.0,112490.0,0.00046231]
[1757496458955,1.07241622,112500.0,112490.0,0.14862231]
[1757496459178,1.07241622,112500.0,112490.0,0.00046231]
[1757496460380,1.07341622,112500.0,112490.0,0.00046231]
[1757496460735,0.58358054,112500.0,112490.0,0.00046231]
[1757496460935,0.90257838,112500.0,112490.0,0.00046231]
[1757496463671,0.73174054,112500.0,112490.0,0.00046231]
[1757496463870,0.90257838,112500.0,112490.0,0.00046231]
[1757496466530,0.75441838,112500.0,112490.0,0.00046231]
[1757496466748,0.90265838,112500.0,112490.0,0.00046231]
[1757496466947,0.90261838,112500.0,112490.0,0.00046231]
[1757496467934,0.75441838,112500.0,112490.0,0.00046231]
[1757496468129,0.90261838,112500.0,112490.0,0.00046231]
[1757496468635,0.91469319,112500.0,112490.0,0.00046231]
[1757496470824,0.73178054,112500.0,112490.0,0.17130015]
[1757496474109,0.90261838,112500.0,112490.0,0.00046231]
[1757496474288,0.73178054,112500.0,112490.0,0.00046231]
[1757496474468,0.90261838,112500.0,112490.0,0.00046231]
[1757496476930,0.90261838,112500.0,112490.0,0.17130015]
[1757496477531,0.73178054,112500.0,112490.0,0.17130015]
[1757496478467,0.72290668,112500.0,112490.0,0.17130015]
[1757496480005,0.89374452,112500.0,112490.0,0.00046231]
[1757496480159,0.98566051,112500.0,112490.0,0.00046231]
[1757496480367,0.81482267,112500.0,112490.0,0.00046231]
[1757496480562,0.72290668,112500.0,112490.0,0.00046231]
[1757496481438,0.57470668,112500.0,112490.0,0.00046231]
[1757496481646,0.72290668,112500.0,112490.0,0.00046231]
[1757496481854,0.20548668,112500.0,112490.0,0.23039189]
[1757496482454,0.20548668,112500.0,112490.0,0.00249231]
[1757496482685,0.20548668,112500.0,112490.0,0.1164421]
[1757496484038,0.20548668,112500.0,112490.0,0.00249231]
[1757496484241,0.20548668,112500.0,112490.0,0.1164421]
[1757496486367,0.20846668,112500.0,112490.0,0.1164421]
[1757496487516,0.21049668,112500.0,112490.0,0.1164421]
[1757496487658,0.21049668,112500.0,112490.0,0.00249231]
[1757496487867,0.21049668,112500.0,112490.0,0.1164421]
[1757496488669,0.68830647,112500.0,112490.0,0.00046231]
[1757496488883,0.86276768,112500.0,112490.0,0.00046231]
[1757496489098,0.83662647,112500.0,112490.0,0.00046231]
[1757496489537,0.72267668,112500.0,112490.0,0.00046231]
[1757496490678,0.83662647,112500.0,112490.0,0.00046231]
[1757496490913,0.8743339,112500.0,112490.0,0.00046231]
[1757496491169,0.98828369,112500.0,112490.0,0.00046231]
[1757496491393,0.17780938,112480.0,112470.0,0.06832]
[1757496491637,0.17780938,112480.0,112470.0,0.19780623]
[1757496491864,0.46795917,112480.0,112470.0,4.623e-05]
[1757496492315,0.50369821,112480.0,112470.0,4.623e-05]
[1757496492764,0.50369821,112480.0,112470.0,0.00104623]
[1757496492971,0.50369821,112480.0,112470.0,0.00204623]
[1757496493382,0.24122842,112480.0,112470.0,4.623e-05]
[1757496493586,0.21868842,112480.0,112470.0,4.623e-05]
[1757496494207,0.21968842,112480.0,112470.0,4.623e-05]
[1757496502562,0.24222842,112480.0,112470.0,4.623e-05]
[1757496513547,0.35617821,112480.0,112470.0,4.623e-05]
[1757496514512,0.72144749,112480.0,112470.0,4.623e-05]
[1757496519426,0.69617821,112480.0,112470.0,4.623e-05]
[1757496519583,0.84453821,112480.0,112470.0,4.623e-05]
[1757496520306,0.73058842,112480.0,112470.0,4.623e-05]
[1757496522120,0.9364542,112480.0,112470.0,4.623e-05]
[1757496522334,1.05040399,112480.0,112470.0,4.623e-05]
[1757496523119,0.9364542,112480.0,112470.0,4.623e-05]
[1757496523339,0.7880942,112480.0,112470.0,4.623e-05]
[1757496523568,0.9364142,112480.0,112470.0,4.623e-05]
[1757496525248,1.02833019,112480.0,112470.0,4.623e-05]
[1757496527015,0.88001019,112480.0,112470.0,4.623e-05]
[1757496527216,0.9364142,112480.0,112470.0,4.623e-05]
[1757496528595,0.7880942,112480.0,112470.0,4.623e-05]
[1757496528979,0.9363742,112480.0,112470.0,4.623e-05]
[1757496533440,0.82242441,112480.0,112470.0,4.623e-05]
[1757496533630,0.9363742,112480.0,112470.0,4.623e-05]
[1757496535067,0.9138342,112480.0,112470.0,4.623e-05]
[1757496535678,0.9379742,112480.0,112470.0,4.623e-05]
[1757496537202,0.7896942,112480.0,112470.0,4.623e-05]
[1757496537409,0.9379342,112480.0,112470.0,4.623e-05]
[1757496537811,0.82398441,112480.0,112470.0,4.623e-05]
[1757496538050,0.9379342,112480.0,112470.0,4.623e-05]
[1757496538278,0.67574441,112480.0,112470.0,4.623e-05]
[1757496538461,0.20552562,112480.0,112470.0,0.11597602]
[1757496538663,0.21080562,112480.0,112470.0,0.11597602]
[1757496540423,0.21080562,112480.0,112470.0,0.17296605]
[1757496542464,0.20552562,112480.0,112470.0,0.37002587]
[1757496542674,0.20552562,112480.0,112470.0,0.67854186]
[1757496546577,0.20552562,112480.0,112470.0,0.68760448]
[1757496547109,0.20552562,112480.0,112470.0,0.75367571]
[1757496549974,0.20552562,112480.0,112470.0,0.60543571]
[1757496550169,0.20552562,112480.0,112470.0,0.75367571]
[1757496551221,0.20552562,112480.0,112470.0,0.24132605]
[1757496551393,0.21070562,112480.0,112470.0,0.24132605]
[1757496551602,0.20552562,112480.0,112470.0,0.38956605]
[1757496552038,0.20552562,112480.0,112470.0,0.39235605]
[1757496552188,0.20552562,112480.0,112470.0,0.41687605]
[1757496552589,0.20552562,112480.0,112470.0,0.26863605]
[1757496552798,0.20552562,112480.0,112470.0,0.24593623]
[1757496553208,0.20552562,112480.0,112470.0,0.41687605]
[1757496553467,0.20552562,112480.0,112470.0,0.42595829]
[1757496554819,0.20552562,112480.0,112470.0,0.27771829]
[1757496554945,0.20552562,112480.0,112470.0,0.42595829]
[1757496555310,0.20552562,112480.0,112470.0,0.27771829]
[1757496555545,0.20552562,112480.0,112470.0,0.42595829]
[1757496556162,0.20552562,112480.0,112470.0,0.26863605]
[1757496556485,0.20552562,112480.0,112470.0,0.38956605]
[1757496558126,0.20552562,112480.0,112470.0,0.24132605]
[1757496558380,0.20552562,112480.0,112470.0,0.38956605]
[1757496560223,0.20552562,112480.0,112470.0,0.24132605]
[1757496560420,0.20552562,112480.0,112470.0,0.38956605]
[1757496560665,0.20552562,112480.0,112470.0,0.24411605]
[1757496561273,0.20552562,112480.0,112470.0,0.39235605]
[1757496562177,0.20552562,112480.0,112470.0,0.41687605]
[1757496562872,0.20552562,112480.0,112470.0,0.26863605]
[1757496563074,0.20552562,112480.0,112470.0,0.41683605]
[1757496568392,0.20552562,112480.0,112470.0,0.48085722]
[1757496569556,0.20552562,112480.0,112470.0,0.47806722]
[1757496570071,0.20552562,112480.0,112470.0,0.32986722]
[1757496570267,0.20552562,112480.0,112470.0,0.45354722]
[1757496571626,0.20552562,112480.0,112470.0,0.47628704]
[1757496571897,0.20552562,112480.0,112470.0,0.62448704]
[1757496572262,0.21070562,112480.0,112470.0,0.62448704]
[1757496573472,0.20552562,112480.0,112470.0,0.62448704]
[1757496573801,0.20552562,112480.0,112470.0,0.89318704]
[1757496573988,0.20552562,112480.0,112470.0,0.5513074]
[1757496574196,0.20552562,112480.0,112470.0,0.89318704]
[1757496574894,0.20552562,112480.0,112470.0,0.74498704]
[1757496575102,0.20552562,112480.0,112470.0,0.89318704]
[1757496575314,0.21070562,112480.0,112470.0,0.57206722]
[1757496575532,0.23462562,112480.0,112470.0,0.50804605]
[1757496575664,0.23462562,112480.0,112470.0,0.65624605]
[1757496576292,0.23462562,112480.0,112470.0,0.33710623]
[1757496576497,0.23462562,112480.0,112470.0,0.65624605]
[1757496576704,0.23462562,112480.0,112470.0,0.50804605]
[1757496577050,0.23462562,112480.0,112470.0,0.65624605]
[1757496579555,0.23462562,112480.0,112470.0,0.38754605]
[1757496580193,0.24356186,112480.0,112470.0,0.38754605]
[1757496580743,0.65949237,112480.0,112470.0,4.623e-05]
[1757496581129,0.65949237,112480.0,112470.0,0.14824623]
[1757496581334,0.75140836,112480.0,112470.0,4.623e-05]
[1757496581538,0.17784101,112460.0,112450.0,0.23929982]
[1757496581747,0.18302101,112460.0,112450.0,0.38749982]
[1757496582373,0.2097402,112460.0,112450.0,0.38749982]
[1757496582899,0.2097402,112460.0,112450.0,0.38949982]
[1757496583790,0.2097402,112460.0,112450.0,0.39049982]
[1757496584000,0.2097402,112460.0,112450.0,0.39256982]
[1757496586239,0.2097402,112460.0,112450.0,0.24436982]
[1757496586443,0.2097402,112460.0,112450.0,0.39256982]
[1757496589499,0.2097402,112460.0,112450.0,0.22163]
[1757496589697,0.2097402,112460.0,112450.0,0.39256982]
[1757496589998,0.2097402,112460.0,112450.0,0.39049982]
[1757496590507,0.2097402,112460.0,112450.0,0.24229982]
[1757496590842,0.2097402,112460.0,112450.0,0.39049982]
[1757496591043,0.2097402,112460.0,112450.0,0.39256982]
[1757496592069,0.2097402,112460.0,112450.0,0.24436982]
[1757496592276,0.2097402,112460.0,112450.0,0.39049982]
[1757496592623,0.38068002,112460.0,112450.0,0.24229982]
[1757496592849,0.38068002,112460.0,112450.0,0.39049982]
[1757496593060,0.2097402,112460.0,112450.0,0.39049982]
[1757496593704,0.38068002,112460.0,112450.0,0.21956]
[1757496594669,0.38068002,112460.0,112450.0,0.39049982]
[1757496595801,0.2097402,112460.0,112450.0,0.39049982]
[1757496597149,0.2097402,112460.0,112450.0,0.21956]
[1757496597297,0.43653189,112460.0,112450.0,0.21956]
[1757496597508,0.2097402,112460.0,112450.0,0.39049982]
[1757496598823,0.2097402,112460.0,112450.0,0.39256982]
[1757496598963,0.2097402,112460.0,112450.0,0.22163]
[1757496599166,0.2097402,112460.0,112450.0,0.24436982]
[1757496599400,0.2097402,112460.0,112450.0,0.39256982]
[1757496599566,0.2097402,112460.0,112450.0,0.22163]
[1757496599742,0.2097402,112460.0,112450.0,0.24436982]
[1757496599943,0.2097402,112460.0,112450.0,0.39256982]
[1757496600552,0.2045602,112460.0,112450.0,0.39256982]
[1757496602529,0.2045602,112460.0,112450.0,0.33563368]
[1757496604422,0.02671919,112460.0,112450.0,1.04831361]
[1757496604654,0.17782589,112470.0,112450.0,1.17618792]
[1757496604869,0.17782589,112470.0,112460.0,0.34755335]
[1757496605085,0.17782589,112470.0,112460.0,0.20591967]
[1757496605302,0.17984589,112470.0,112460.0,0.09191599]
[1757496605509,0.17784101,112460.0,112450.0,0.18436368]
[1757496605720,0.17784101,112460.0,112450.0,0.42462967]
[1757496605950,0.17784101,112460.0,112450.0,0.49144084]